[Event "Titled Tuesday Blitz October 12 2021"]
[White "Pichot, Alan"]
[Black "Weetik, Vjacheslav"]
[WhiteFideId "110973"]
[BlackFideId "4153472"]
[WhiteElo "2600"]
[BlackElo "2469"]
[Result "0-1"]
[Round "08"]
[TimeControl "180+1"]
[Date "2021.10.12"]
[WhiteClock "0:00:59"]
[BlackClock "0:00:07"]

1. e4 {[%clk 0:03:00]}  c6 {[%clk 0:03:00]} 2. d4 {[%clk 0:02:58]}  d5 {[%clk 0:03:00]} 3. e5 {[%clk 0:02:58]}  Bf5 {[%clk 0:03:00]} 4. Nf3 {[%clk 0:02:58]}  e6 {[%clk 0:03:00]} 5. Be2 {[%clk 0:02:59]}  Nd7 {[%clk 0:03:00]} 6. O-O {[%clk 0:02:59]}  Bg6 {[%clk 0:02:59]} 7. a4 {[%clk 0:03:00]}  Nh6 {[%clk 0:02:59]} 8. a5 {[%clk 0:02:59]}  Nf5 {[%clk 0:03:00]} 9. c3 {[%clk 0:02:59]}  Be7 {[%clk 0:02:59]} 10. b4 {[%clk 0:02:59]}  O-O {[%clk 0:02:58]} 11. a6 {[%clk 0:02:59]}  b6 {[%clk 0:02:45]} 12. Nbd2 {[%clk 0:02:58]}  f6 {[%clk 0:02:45]} 13. Nb3 {[%clk 0:02:51]}  fxe5 {[%clk 0:02:42]} 14. Nxe5 {[%clk 0:02:50]}  Nxe5 {[%clk 0:02:42]} 15. dxe5 {[%clk 0:02:51]}  c5 {[%clk 0:02:39]} 16. bxc5 {[%clk 0:02:40]}  bxc5 {[%clk 0:02:38]} 17. c4 {[%clk 0:02:41]}  Rb8 {[%clk 0:02:27]} 18. Na5 {[%clk 0:02:29]}  Nd4 {[%clk 0:02:21]} 19. Be3 {[%clk 0:02:26]}  Nxe2+ {[%clk 0:02:06]} 20. Qxe2 {[%clk 0:02:27]}  d4 {[%clk 0:01:51]} 21. Nc6 {[%clk 0:02:17]}  Qc7 {[%clk 0:01:51]} 22. Nxe7+ {[%clk 0:02:18]}  Qxe7 {[%clk 0:01:51]} 23. Bc1 {[%clk 0:02:19]}  Rb3 {[%clk 0:01:45]} 24. Re1 {[%clk 0:02:10]}  Bd3 {[%clk 0:01:41]} 25. Qd1 {[%clk 0:02:05]}  Bxc4 {[%clk 0:01:41]} 26. Ba3 {[%clk 0:02:05]}  Bd5 {[%clk 0:01:21]} 27. Qc1 {[%clk 0:01:57]}  Qh4 {[%clk 0:01:16]} 28. f3 {[%clk 0:01:48]}  Rbxf3 {[%clk 0:00:42]} 29. gxf3 {[%clk 0:01:30]}  Rxf3 {[%clk 0:00:41]} 30. Re2 {[%clk 0:01:31]}  d3 {[%clk 0:00:18]} 31. Qe1 {[%clk 0:01:00]}  Qd4+ {[%clk 0:00:15]} 32. Rf2 {[%clk 0:01:00]}  Rxf2 {[%clk 0:00:12]} 33. Bxc5 {[%clk 0:01:01]}  Rg2+ {[%clk 0:00:08]} 34. Kh1 {[%clk 0:00:59]}  Qxc5 {[%clk 0:00:07]} 0-1


[Site "https://www.chess.com"]

[Event "Titled Tuesday Blitz October 12 2021"]
[White "Rasulov, Vugar"]
[Black "Molina, Roberto Junio Brito"]
[WhiteFideId "13402390"]
[BlackFideId "2109450"]
[WhiteElo "2560"]
[BlackElo "2402"]
[Result "1-0"]
[Round "08"]
[TimeControl "180+1"]
[Date "2021.10.12"]
[WhiteClock "0:01:54"]
[BlackClock "0:00:04"]

1. d4 {[%clk 0:03:00]}  d5 {[%clk 0:02:59]} 2. c4 {[%clk 0:03:01]}  c6 {[%clk 0:02:59]} 3. Nf3 {[%clk 0:02:58]}  Nf6 {[%clk 0:02:59]} 4. Qc2 {[%clk 0:02:58]}  dxc4 {[%clk 0:02:58]} 5. e4 {[%clk 0:02:59]}  b5 {[%clk 0:02:57]} 6. b3 {[%clk 0:02:59]}  cxb3 {[%clk 0:02:57]} 7. axb3 {[%clk 0:03:00]}  Bb7 {[%clk 0:02:56]} 8. Bd2 {[%clk 0:02:59]}  e6 {[%clk 0:02:52]} 9. Bd3 {[%clk 0:03:00]}  a5 {[%clk 0:02:47]} 10. O-O {[%clk 0:02:59]}  Be7 {[%clk 0:02:45]} 11. Nc3 {[%clk 0:02:56]}  O-O {[%clk 0:02:45]} 12. e5 {[%clk 0:02:57]}  Nd5 {[%clk 0:02:44]} 13. Nxd5 {[%clk 0:02:57]}  cxd5 {[%clk 0:02:41]} 14. Bxh7+ {[%clk 0:02:57]}  Kh8 {[%clk 0:02:41]} 15. Bd3 {[%clk 0:02:56]}  Nc6 {[%clk 0:02:21]} 16. h4 {[%clk 0:02:57]}  Bxh4 {[%clk 0:02:14]} 17. g3 {[%clk 0:02:57]}  Be7 {[%clk 0:02:14]} 18. Kg2 {[%clk 0:02:57]}  f5 {[%clk 0:02:11]} 19. exf6 {[%clk 0:02:55]}  Bxf6 {[%clk 0:02:05]} 20. Bxb5 {[%clk 0:02:45]}  Nxd4 {[%clk 0:01:52]} 21. Nxd4 {[%clk 0:02:41]}  Bxd4 {[%clk 0:01:53]} 22. Rh1+ {[%clk 0:02:39]}  Kg8 {[%clk 0:01:51]} 23. Qh7+ {[%clk 0:02:40]}  Kf7 {[%clk 0:01:51]} 24. Ra4 {[%clk 0:02:33]}  Qf6 {[%clk 0:01:33]} 25. Qh5+ {[%clk 0:02:32]}  Kg8 {[%clk 0:01:31]} 26. Bf4 {[%clk 0:02:22]}  Bc5 {[%clk 0:01:12]} 27. Bd3 {[%clk 0:02:15]}  Rfc8 {[%clk 0:00:11]} 28. f3 {[%clk 0:01:57]}  Bf8 {[%clk 0:00:04]} 29. Bh7+ {[%clk 0:01:54]} 1-0


[Site "https://www.chess.com"]

[Event "Titled Tuesday Blitz October 12 2021"]
[White "Shkapenko, Pavel"]
[Black "Zhigalko, Sergei"]
[WhiteFideId "4151933"]
[BlackFideId "13502956"]
[WhiteElo "2386"]
[BlackElo "2662"]
[Result "0-1"]
[Round "08"]
[TimeControl "180+1"]
[Date "2021.10.12"]
[WhiteClock "0:00:01"]
[BlackClock "0:00:03"]

1. e4 {[%clk 0:02:48]}  c5 {[%clk 0:02:59]} 2. c3 {[%clk 0:02:48]}  Nf6 {[%clk 0:02:59]} 3. e5 {[%clk 0:02:47]}  Nd5 {[%clk 0:02:59]} 4. d4 {[%clk 0:02:47]}  cxd4 {[%clk 0:03:00]} 5. cxd4 {[%clk 0:02:48]}  Nc6 {[%clk 0:03:01]} 6. Nc3 {[%clk 0:02:48]}  e6 {[%clk 0:03:01]} 7. Nf3 {[%clk 0:02:47]}  d6 {[%clk 0:03:00]} 8. Bd3 {[%clk 0:02:47]}  Be7 {[%clk 0:03:00]} 9. O-O {[%clk 0:02:46]}  O-O {[%clk 0:02:59]} 10. Qc2 {[%clk 0:02:47]}  h6 {[%clk 0:02:50]} 11. Qe2 {[%clk 0:02:42]}  Bd7 {[%clk 0:02:35]} 12. Qe4 {[%clk 0:02:04]}  f5 {[%clk 0:02:33]} 13. exf6 {[%clk 0:02:04]}  Nxf6 {[%clk 0:02:33]} 14. Qe2 {[%clk 0:01:53]}  Nb4 {[%clk 0:02:18]} 15. Bc4 {[%clk 0:01:51]}  Nbd5 {[%clk 0:02:17]} 16. Nh4 {[%clk 0:01:38]}  Qe8 {[%clk 0:01:45]} 17. Re1 {[%clk 0:01:33]}  Qf7 {[%clk 0:01:21]} 18. Bd3 {[%clk 0:01:10]}  g5 {[%clk 0:01:17]} 19. Ng6 {[%clk 0:01:09]}  Rfe8 {[%clk 0:01:17]} 20. Nxe7+ {[%clk 0:01:07]}  Rxe7 {[%clk 0:01:17]} 21. Bd2 {[%clk 0:01:01]}  Rf8 {[%clk 0:01:16]} 22. Ne4 {[%clk 0:00:59]}  Nxe4 {[%clk 0:01:13]} 23. Bxe4 {[%clk 0:01:00]}  Nf4 {[%clk 0:00:57]} 24. Bxf4 {[%clk 0:00:58]}  Qxf4 {[%clk 0:00:57]} 25. Rad1 {[%clk 0:00:53]}  Ref7 {[%clk 0:00:41]} 26. f3 {[%clk 0:00:51]}  a6 {[%clk 0:00:37]} 27. Bxb7 {[%clk 0:00:38]}  g4 {[%clk 0:00:37]} 28. Qe4 {[%clk 0:00:31]}  Qxe4 {[%clk 0:00:26]} 29. Bxe4 {[%clk 0:00:26]}  d5 {[%clk 0:00:26]} 30. Bb1 {[%clk 0:00:19]}  gxf3 {[%clk 0:00:27]} 31. gxf3 {[%clk 0:00:19]}  Rxf3 {[%clk 0:00:27]} 32. Rf1 {[%clk 0:00:20]}  Bb5 {[%clk 0:00:20]} 33. Rxf3 {[%clk 0:00:20]}  Rxf3 {[%clk 0:00:21]} 34. Kg2 {[%clk 0:00:20]}  Re3 {[%clk 0:00:16]} 35. Rd2 {[%clk 0:00:19]}  a5 {[%clk 0:00:09]} 36. Bc2 {[%clk 0:00:19]}  Kg7 {[%clk 0:00:09]} 37. Kf2 {[%clk 0:00:20]}  Rh3 {[%clk 0:00:09]} 38. Kg2 {[%clk 0:00:20]}  Re3 {[%clk 0:00:09]} 39. Kf2 {[%clk 0:00:20]}  Rh3 {[%clk 0:00:09]} 40. Kg2 {[%clk 0:00:20]}  Rh5 {[%clk 0:00:08]} 41. Kg3 {[%clk 0:00:19]}  Rg5+ {[%clk 0:00:08]} 42. Kf4 {[%clk 0:00:17]}  Kf6 {[%clk 0:00:08]} 43. b3 {[%clk 0:00:16]}  Rg1 {[%clk 0:00:06]} 44. Rf2 {[%clk 0:00:16]}  h5 {[%clk 0:00:03]} 45. Ke3+ {[%clk 0:00:16]}  Ke7 {[%clk 0:00:03]} 46. Kd2 {[%clk 0:00:11]}  Rg4 {[%clk 0:00:02]} 47. Ke3 {[%clk 0:00:11]}  Rh4 {[%clk 0:00:02]} 48. Bd1 {[%clk 0:00:10]}  Re4+ {[%clk 0:00:02]} 49. Kd2 {[%clk 0:00:08]}  Rxd4+ {[%clk 0:00:02]} 50. Kc1 {[%clk 0:00:08]}  h4 {[%clk 0:00:03]} 51. h3 {[%clk 0:00:07]}  Kd6 {[%clk 0:00:03]} 52. Bg4 {[%clk 0:00:07]}  Bd7 {[%clk 0:00:03]} 53. Rf6 {[%clk 0:00:07]}  Rd3 {[%clk 0:00:01]} 54. Rh6 {[%clk 0:00:07]}  Rg3 {[%clk 0:00:01]} 55. Rxh4 {[%clk 0:00:07]}  Rg2 {[%clk 0:00:01]} 56. Rh6 {[%clk 0:00:06]}  d4 {[%clk 0:00:02]} 57. Rg6 {[%clk 0:00:06]}  Ke5 {[%clk 0:00:02]} 58. Bf5 {[%clk 0:00:06]}  Rf2 {[%clk 0:00:01]} 59. Bg4 {[%clk 0:00:06]}  Rh2 {[%clk 0:00:02]} 60. Rg7 {[%clk 0:00:06]}  Kd6 {[%clk 0:00:02]} 61. Rg5 {[%clk 0:00:07]}  Bc6 {[%clk 0:00:02]} 62. Rg6 {[%clk 0:00:06]}  Bd5 {[%clk 0:00:02]} 63. Rg5 {[%clk 0:00:06]}  Rxa2 {[%clk 0:00:02]} 64. Bd1 {[%clk 0:00:05]}  Rh2 {[%clk 0:00:02]} 65. Rg3 {[%clk 0:00:05]}  e5 {[%clk 0:00:02]} 66. Bg4 {[%clk 0:00:05]}  e4 {[%clk 0:00:02]} 67. Bf5 {[%clk 0:00:04]}  e3 {[%clk 0:00:02]} 68. Bd3 {[%clk 0:00:03]}  Bxb3 {[%clk 0:00:02]} 69. Rg5 {[%clk 0:00:02]}  a4 {[%clk 0:00:03]} 70. Rb5 {[%clk 0:00:01]}  Rxh3 {[%clk 0:00:03]} 71. Kb2 {[%clk 0:00:01]}  Rh2+ {[%clk 0:00:03]} 0-1


[Site "https://www.chess.com"]

[Event "Titled Tuesday Blitz October 12 2021"]
[White "Abdyzhapar, Asylbek"]
[Black "Warmerdam, Max"]
[WhiteFideId "13800337"]
[BlackFideId "1048104"]
[WhiteElo "2383"]
[BlackElo "2537"]
[Result "0-1"]
[Round "09"]
[TimeControl "180+1"]
[Date "2021.10.12"]
[WhiteClock "0:00:40"]
[BlackClock "0:01:15"]

1. d4 {[%clk 0:03:00]}  d5 {[%clk 0:03:00]} 2. c4 {[%clk 0:03:00]}  e6 {[%clk 0:03:00]} 3. Nc3 {[%clk 0:02:59]}  a6 {[%clk 0:03:01]} 4. cxd5 {[%clk 0:02:57]}  exd5 {[%clk 0:03:02]} 5. Bf4 {[%clk 0:02:57]}  Nf6 {[%clk 0:03:01]} 6. e3 {[%clk 0:02:56]}  Bd6 {[%clk 0:03:02]} 7. Bg3 {[%clk 0:02:49]}  O-O {[%clk 0:03:01]} 8. Bd3 {[%clk 0:02:49]}  c6 {[%clk 0:03:00]} 9. Qc2 {[%clk 0:02:47]}  Re8 {[%clk 0:02:58]} 10. Nf3 {[%clk 0:02:46]}  Bg4 {[%clk 0:02:55]} 11. Ne5 {[%clk 0:02:46]}  Be6 {[%clk 0:02:56]} 12. f4 {[%clk 0:02:44]}  c5 {[%clk 0:02:52]} 13. O-O {[%clk 0:02:40]}  cxd4 {[%clk 0:02:50]} 14. exd4 {[%clk 0:02:40]}  Qb6 {[%clk 0:02:51]} 15. Bf2 {[%clk 0:02:38]}  Nc6 {[%clk 0:02:48]} 16. Qd2 {[%clk 0:02:33]}  Ne7 {[%clk 0:02:39]} 17. h3 {[%clk 0:02:30]}  Bb4 {[%clk 0:02:36]} 18. Qd1 {[%clk 0:02:02]}  Bf5 {[%clk 0:01:46]} 19. Na4 {[%clk 0:01:50]}  Qa5 {[%clk 0:01:38]} 20. a3 {[%clk 0:01:50]}  Bd6 {[%clk 0:01:37]} 21. b4 {[%clk 0:01:49]}  Qd8 {[%clk 0:01:36]} 22. Nc5 {[%clk 0:01:46]}  b6 {[%clk 0:01:31]} 23. Nb7 {[%clk 0:01:32]}  Qb8 {[%clk 0:01:31]} 24. Nxd6 {[%clk 0:01:29]}  Qxd6 {[%clk 0:01:32]} 25. Rc1 {[%clk 0:01:22]}  Bxd3 {[%clk 0:01:30]} 26. Qxd3 {[%clk 0:01:22]}  Ne4 {[%clk 0:01:30]} 27. Be3 {[%clk 0:01:22]}  a5 {[%clk 0:01:26]} 28. b5 {[%clk 0:01:19]}  f6 {[%clk 0:01:21]} 29. Nc6 {[%clk 0:01:17]}  Nf5 {[%clk 0:01:21]} 30. Rce1 {[%clk 0:00:54]}  h5 {[%clk 0:01:19]} 31. g4 {[%clk 0:00:48]}  hxg4 {[%clk 0:01:20]} 32. hxg4 {[%clk 0:00:49]}  Nh6 {[%clk 0:01:20]} 33. f5 {[%clk 0:00:40]}  Qg3+ {[%clk 0:01:14]} 34. Kh1 {[%clk 0:00:40]}  Qh3+ {[%clk 0:01:14]} 35. Kg1 {[%clk 0:00:40]}  Qxg4+ {[%clk 0:01:14]} 36. Kh2 {[%clk 0:00:40]}  Qh4+ {[%clk 0:01:14]} 37. Kg2 {[%clk 0:00:40]}  Qg3+ {[%clk 0:01:14]} 38. Kh1 {[%clk 0:00:40]}  Ng4 {[%clk 0:01:15]} 0-1


[Site "https://www.chess.com"]

[Event "Titled Tuesday Blitz October 12 2021"]
[White "Begmuratov, Khumoyun"]
[Black "Stoleriu, George"]
[WhiteFideId "14210207"]
[BlackFideId "1227505"]
[WhiteElo "1948"]
[BlackElo "2199"]
[Result "1-0"]
[Round "09"]
[TimeControl "180+1"]
[Date "2021.10.12"]
[WhiteClock "0:00:46"]
[BlackClock "0:00:18"]

1. b3 {[%clk 0:03:00]}  e5 {[%clk 0:02:27]} 2. Bb2 {[%clk 0:03:00]}  Nc6 {[%clk 0:02:26]} 3. e3 {[%clk 0:03:00]}  d5 {[%clk 0:02:26]} 4. Bb5 {[%clk 0:03:01]}  Ne7 {[%clk 0:02:25]} 5. Bxe5 {[%clk 0:02:59]}  a6 {[%clk 0:02:24]} 6. Bxc6+ {[%clk 0:02:58]}  Nxc6 {[%clk 0:02:25]} 7. Bb2 {[%clk 0:02:58]}  Qg5 {[%clk 0:02:23]} 8. Qf3 {[%clk 0:02:54]}  Bd6 {[%clk 0:02:19]} 9. h4 {[%clk 0:02:51]}  Qh6 {[%clk 0:02:06]} 10. g4 {[%clk 0:02:40]}  Ne5 {[%clk 0:01:59]} 11. Bxe5 {[%clk 0:02:37]}  Bxe5 {[%clk 0:01:59]} 12. d4 {[%clk 0:02:37]}  Bd6 {[%clk 0:01:58]} 13. Ne2 {[%clk 0:02:32]}  c6 {[%clk 0:01:54]} 14. Nf4 {[%clk 0:02:27]}  Bxf4 {[%clk 0:01:52]} 15. exf4 {[%clk 0:02:26]}  Qe6+ {[%clk 0:01:51]} 16. Qe3 {[%clk 0:02:20]}  Qxe3+ {[%clk 0:01:50]} 17. fxe3 {[%clk 0:02:21]}  Bxg4 {[%clk 0:01:51]} 18. Rg1 {[%clk 0:02:21]}  h5 {[%clk 0:01:51]} 19. Nc3 {[%clk 0:02:17]}  O-O-O {[%clk 0:01:44]} 20. Kd2 {[%clk 0:02:16]}  Rhe8 {[%clk 0:01:44]} 21. Rg3 {[%clk 0:02:16]}  Rd6 {[%clk 0:01:44]} 22. a4 {[%clk 0:02:16]}  f6 {[%clk 0:01:42]} 23. a5 {[%clk 0:02:15]}  Rde6 {[%clk 0:01:41]} 24. Na4 {[%clk 0:02:15]}  Rg8 {[%clk 0:01:41]} 25. Nc5 {[%clk 0:02:15]}  Re7 {[%clk 0:01:42]} 26. c4 {[%clk 0:02:13]}  g5 {[%clk 0:01:39]} 27. hxg5 {[%clk 0:02:13]}  fxg5 {[%clk 0:01:40]} 28. fxg5 {[%clk 0:02:13]}  Rxg5 {[%clk 0:01:41]} 29. Rag1 {[%clk 0:02:08]}  Rf7 {[%clk 0:01:38]} 30. e4 {[%clk 0:02:01]}  dxe4 {[%clk 0:01:35]} 31. Nxe4 {[%clk 0:02:02]}  Rg6 {[%clk 0:01:33]} 32. Kc3 {[%clk 0:01:50]}  Kc7 {[%clk 0:01:31]} 33. Nc5 {[%clk 0:01:43]}  Rgf6 {[%clk 0:01:26]} 34. Kb4 {[%clk 0:01:40]}  Rf4 {[%clk 0:01:22]} 35. Kc3 {[%clk 0:01:28]}  Rf3+ {[%clk 0:01:21]} 36. Rxf3 {[%clk 0:01:24]}  Rxf3+ {[%clk 0:01:22]} 37. Kd2 {[%clk 0:01:24]}  Rf2+ {[%clk 0:01:21]} 38. Ke3 {[%clk 0:01:24]}  Rf3+ {[%clk 0:01:15]} 39. Ke4 {[%clk 0:01:23]}  Rf2 {[%clk 0:01:12]} 40. Ke5 {[%clk 0:01:18]}  Rf5+ {[%clk 0:01:06]} 41. Ke4 {[%clk 0:01:17]}  Rf7 {[%clk 0:01:06]} 42. Ke3 {[%clk 0:01:11]}  Rg7 {[%clk 0:01:00]} 43. Ne6+ {[%clk 0:01:10]}  Bxe6 {[%clk 0:00:58]} 44. Rxg7+ {[%clk 0:01:10]}  Kd6 {[%clk 0:00:57]} 45. Rh7 {[%clk 0:01:10]}  Bg4 {[%clk 0:00:57]} 46. Rxb7 {[%clk 0:01:10]}  h4 {[%clk 0:00:57]} 47. Rh7 {[%clk 0:01:10]}  h3 {[%clk 0:00:58]} 48. Ke4 {[%clk 0:01:09]}  Ke6 {[%clk 0:00:56]} 49. Rh4 {[%clk 0:01:07]}  Bf5+ {[%clk 0:00:55]} 50. Kf4 {[%clk 0:01:07]}  Kf6 {[%clk 0:00:49]} 51. d5 {[%clk 0:01:06]}  cxd5 {[%clk 0:00:48]} 52. cxd5 {[%clk 0:01:07]}  Bd7 {[%clk 0:00:48]} 53. Kg3 {[%clk 0:01:06]}  Ke5 {[%clk 0:00:48]} 54. Rh6 {[%clk 0:01:05]}  Bb5 {[%clk 0:00:41]} 55. d6 {[%clk 0:01:03]}  Bd7 {[%clk 0:00:41]} 56. b4 {[%clk 0:00:57]}  Kd5 {[%clk 0:00:41]} 57. Kh2 {[%clk 0:00:52]}  Kc6 {[%clk 0:00:37]} 58. Kg3 {[%clk 0:00:48]}  Kd5 {[%clk 0:00:25]} 59. Rh7 {[%clk 0:00:48]}  Kxd6 {[%clk 0:00:26]} 60. Rh6+ {[%clk 0:00:48]}  Be6 {[%clk 0:00:25]} 61. b5 {[%clk 0:00:48]}  Kd7 {[%clk 0:00:18]} 62. Rxe6 {[%clk 0:00:46]} 1-0


[Site "https://www.chess.com"]

[Event "Titled Tuesday Blitz October 12 2021"]
[White "Budrewicz, Krzysztof"]
[Black "Koksik_13"]
[WhiteFideId "1127950"]
[WhiteElo "2242"]
[BlackElo "2723"]
[Result "0-1"]
[Round "09"]
[TimeControl "180+1"]
[Date "2021.10.12"]
[WhiteClock "0:00:11"]
[BlackClock "0:00:09"]

1. d4 {[%clk 0:03:00]}  e6 {[%clk 0:02:53]} 2. c4 {[%clk 0:03:00]}  d5 {[%clk 0:02:54]} 3. Nc3 {[%clk 0:03:00]}  a6 {[%clk 0:02:54]} 4. g3 {[%clk 0:02:52]}  dxc4 {[%clk 0:02:53]} 5. Bg2 {[%clk 0:02:52]}  Nf6 {[%clk 0:02:52]} 6. a4 {[%clk 0:02:49]}  Nc6 {[%clk 0:02:48]} 7. Nf3 {[%clk 0:02:48]}  Be7 {[%clk 0:02:47]} 8. O-O {[%clk 0:02:48]}  O-O {[%clk 0:02:48]} 9. e4 {[%clk 0:02:48]}  Na5 {[%clk 0:02:48]} 10. Be3 {[%clk 0:02:45]}  Nb3 {[%clk 0:02:46]} 11. Ra2 {[%clk 0:02:41]}  c5 {[%clk 0:02:46]} 12. d5 {[%clk 0:02:34]}  exd5 {[%clk 0:02:46]} 13. exd5 {[%clk 0:02:31]}  Bf5 {[%clk 0:02:45]} 14. Ne5 {[%clk 0:02:29]}  Na5 {[%clk 0:02:31]} 15. Qe2 {[%clk 0:02:20]}  Bd6 {[%clk 0:02:28]} 16. Nxc4 {[%clk 0:02:19]}  Nxc4 {[%clk 0:02:29]} 17. Qxc4 {[%clk 0:02:19]}  Nd7 {[%clk 0:02:27]} 18. a5 {[%clk 0:02:18]}  Ne5 {[%clk 0:02:27]} 19. Qa4 {[%clk 0:02:08]}  Re8 {[%clk 0:02:08]} 20. Raa1 {[%clk 0:01:56]}  Ng4 {[%clk 0:01:57]} 21. Bf4 {[%clk 0:01:54]}  Bd7 {[%clk 0:01:54]} 22. Qc4 {[%clk 0:01:46]}  Bb5 {[%clk 0:01:54]} 23. Nxb5 {[%clk 0:01:41]}  axb5 {[%clk 0:01:55]} 24. Qc1 {[%clk 0:01:41]}  Nf6 {[%clk 0:01:49]} 25. Be3 {[%clk 0:01:35]}  c4 {[%clk 0:01:38]} 26. Bb6 {[%clk 0:01:33]}  Bc7 {[%clk 0:01:38]} 27. Bxc7 {[%clk 0:01:20]}  Qxc7 {[%clk 0:01:39]} 28. Qc3 {[%clk 0:01:20]}  Qc5 {[%clk 0:01:40]} 29. b4 {[%clk 0:01:16]}  Qd6 {[%clk 0:01:38]} 30. Rad1 {[%clk 0:01:13]}  Re5 {[%clk 0:01:38]} 31. f4 {[%clk 0:01:05]}  Re7 {[%clk 0:01:37]} 32. Bf3 {[%clk 0:01:04]}  Rae8 {[%clk 0:01:37]} 33. Qd4 {[%clk 0:01:02]}  Re3 {[%clk 0:01:37]} 34. Qc5 {[%clk 0:01:00]}  Qd7 {[%clk 0:01:31]} 35. d6 {[%clk 0:00:59]}  h5 {[%clk 0:01:30]} 36. Qb6 {[%clk 0:00:56]}  h4 {[%clk 0:01:29]} 37. Qxb7 {[%clk 0:00:55]}  Qe6 {[%clk 0:01:12]} 38. d7 {[%clk 0:00:46]}  Rd8 {[%clk 0:01:12]} 39. Qxb5 {[%clk 0:00:42]}  hxg3 {[%clk 0:01:09]} 40. hxg3 {[%clk 0:00:42]}  Qh3 {[%clk 0:01:09]} 41. Qg5 {[%clk 0:00:38]}  c3 {[%clk 0:01:07]} 42. a6 {[%clk 0:00:30]}  c2 {[%clk 0:01:07]} 43. Rc1 {[%clk 0:00:30]}  Rxd7 {[%clk 0:00:48]} 44. Qh4 {[%clk 0:00:19]}  Qe6 {[%clk 0:00:18]} 45. Qh2 {[%clk 0:00:17]}  Qxa6 {[%clk 0:00:16]} 46. Qxc2 {[%clk 0:00:17]}  Rd8 {[%clk 0:00:16]} 47. Qc4 {[%clk 0:00:17]}  Qb6 {[%clk 0:00:12]} 48. Qc5 {[%clk 0:00:16]}  Qe6 {[%clk 0:00:13]} 49. b5 {[%clk 0:00:16]}  g6 {[%clk 0:00:12]} 50. b6 {[%clk 0:00:16]}  Kg7 {[%clk 0:00:13]} 51. b7 {[%clk 0:00:15]}  Rb3 {[%clk 0:00:13]} 52. Qe5 {[%clk 0:00:15]}  Qb6+ {[%clk 0:00:12]} 53. Kg2 {[%clk 0:00:14]}  Rd2+ {[%clk 0:00:12]} 54. Be2 {[%clk 0:00:13]}  Re3 {[%clk 0:00:10]} 55. Qxe3 {[%clk 0:00:10]}  Qxe3 {[%clk 0:00:11]} 56. Rf2 {[%clk 0:00:10]}  Rxe2 {[%clk 0:00:10]} 57. Rxe2 {[%clk 0:00:10]}  Qxe2+ {[%clk 0:00:10]} 58. Kh3 {[%clk 0:00:10]}  Qh5+ {[%clk 0:00:07]} 59. Kg2 {[%clk 0:00:10]}  Qd5+ {[%clk 0:00:08]} 60. Kh3 {[%clk 0:00:11]}  Qxb7 {[%clk 0:00:09]} 0-1


[Site "https://www.chess.com"]

[Event "Titled Tuesday Blitz October 12 2021"]
[White "Gaehwiler, Gabriel"]
[Black "Sargsyan, Anna M."]
[WhiteFideId "1314530"]
[BlackFideId "13308130"]
[WhiteElo "2320"]
[BlackElo "2263"]
[Result "1-0"]
[Round "09"]
[TimeControl "180+1"]
[Date "2021.10.12"]
[WhiteClock "0:00:16"]
[BlackClock "0:00:01"]

1. d4 {[%clk 0:03:00]}  d5 {[%clk 0:02:57]} 2. c4 {[%clk 0:03:00]}  c6 {[%clk 0:02:58]} 3. Nf3 {[%clk 0:03:01]}  Nf6 {[%clk 0:02:58]} 4. Nc3 {[%clk 0:03:01]}  e6 {[%clk 0:02:58]} 5. g3 {[%clk 0:02:58]}  Be7 {[%clk 0:02:56]} 6. Bg2 {[%clk 0:02:58]}  dxc4 {[%clk 0:02:55]} 7. a4 {[%clk 0:02:56]}  O-O {[%clk 0:02:52]} 8. O-O {[%clk 0:02:55]}  Nbd7 {[%clk 0:02:52]} 9. Bf4 {[%clk 0:02:45]}  c5 {[%clk 0:02:52]} 10. a5 {[%clk 0:02:08]}  Nd5 {[%clk 0:02:42]} 11. Bd2 {[%clk 0:02:04]}  cxd4 {[%clk 0:02:39]} 12. Nxd4 {[%clk 0:02:03]}  Nc5 {[%clk 0:02:39]} 13. Ne4 {[%clk 0:01:33]}  Bd7 {[%clk 0:02:33]} 14. Qc2 {[%clk 0:01:30]}  Rc8 {[%clk 0:02:31]} 15. Rfc1 {[%clk 0:01:30]}  Nxe4 {[%clk 0:02:28]} 16. Bxe4 {[%clk 0:01:29]}  Bf6 {[%clk 0:02:27]} 17. e3 {[%clk 0:01:27]}  h6 {[%clk 0:02:15]} 18. Bc3 {[%clk 0:01:23]}  Qe7 {[%clk 0:02:05]} 19. Rd1 {[%clk 0:01:22]}  Rfd8 {[%clk 0:02:05]} 20. h4 {[%clk 0:01:15]}  Be8 {[%clk 0:01:50]} 21. Bh7+ {[%clk 0:01:14]}  Kh8 {[%clk 0:01:49]} 22. Be4 {[%clk 0:01:15]}  b5 {[%clk 0:01:45]} 23. axb6 {[%clk 0:01:14]}  axb6 {[%clk 0:01:46]} 24. Ne2 {[%clk 0:01:10]}  b5 {[%clk 0:01:44]} 25. Bd4 {[%clk 0:01:05]}  b4 {[%clk 0:01:42]} 26. Bxd5 {[%clk 0:01:01]}  exd5 {[%clk 0:01:35]} 27. Bxf6 {[%clk 0:00:56]}  Qxf6 {[%clk 0:01:34]} 28. Rd4 {[%clk 0:00:56]}  Bc6 {[%clk 0:01:26]} 29. Qd2 {[%clk 0:00:52]}  Rb8 {[%clk 0:01:24]} 30. Nf4 {[%clk 0:00:45]}  Rdc8 {[%clk 0:01:15]} 31. Rc1 {[%clk 0:00:40]}  Kg8 {[%clk 0:01:08]} 32. h5 {[%clk 0:00:35]}  Ba8 {[%clk 0:00:55]} 33. Kh2 {[%clk 0:00:35]}  Qe5 {[%clk 0:00:53]} 34. Kg2 {[%clk 0:00:32]}  Rc7 {[%clk 0:00:44]} 35. Kh2 {[%clk 0:00:32]}  Rbc8 {[%clk 0:00:43]} 36. Qxb4 {[%clk 0:00:32]}  Qf5 {[%clk 0:00:33]} 37. Qc3 {[%clk 0:00:32]}  Rb8 {[%clk 0:00:31]} 38. Kg2 {[%clk 0:00:29]}  Rb3 {[%clk 0:00:31]} 39. Qxb3 {[%clk 0:00:29]}  cxb3 {[%clk 0:00:31]} 40. Rxc7 {[%clk 0:00:30]}  Kh7 {[%clk 0:00:30]} 41. Rc3 {[%clk 0:00:28]}  g5 {[%clk 0:00:23]} 42. hxg6+ {[%clk 0:00:28]}  fxg6 {[%clk 0:00:24]} 43. Rxb3 {[%clk 0:00:27]}  g5 {[%clk 0:00:24]} 44. Nd3 {[%clk 0:00:23]}  h5 {[%clk 0:00:21]} 45. Rb8 {[%clk 0:00:19]}  Bc6 {[%clk 0:00:21]} 46. Rb6 {[%clk 0:00:19]}  Be8 {[%clk 0:00:20]} 47. Rd6 {[%clk 0:00:18]}  Bf7 {[%clk 0:00:20]} 48. b4 {[%clk 0:00:15]}  Qc8 {[%clk 0:00:19]} 49. b5 {[%clk 0:00:15]}  Qb8 {[%clk 0:00:15]} 50. R6xd5 {[%clk 0:00:15]}  Bxd5+ {[%clk 0:00:14]} 51. Rxd5 {[%clk 0:00:16]}  Qb7 {[%clk 0:00:15]} 52. e4 {[%clk 0:00:17]}  Kg6 {[%clk 0:00:13]} 53. f3 {[%clk 0:00:16]}  h4 {[%clk 0:00:11]} 54. Ne5+ {[%clk 0:00:17]}  Kf6 {[%clk 0:00:09]} 55. Ng4+ {[%clk 0:00:17]}  Kg6 {[%clk 0:00:10]} 56. gxh4 {[%clk 0:00:18]}  gxh4 {[%clk 0:00:11]} 57. Kh3 {[%clk 0:00:18]}  Qc7 {[%clk 0:00:09]} 58. Kxh4 {[%clk 0:00:17]}  Qc1 {[%clk 0:00:07]} 59. Kg3 {[%clk 0:00:17]}  Qg1+ {[%clk 0:00:07]} 60. Kf4 {[%clk 0:00:18]}  Qc1+ {[%clk 0:00:07]} 61. Ke5 {[%clk 0:00:18]}  Qc3+ {[%clk 0:00:07]} 62. Kd6 {[%clk 0:00:18]}  Qb4+ {[%clk 0:00:06]} 63. Kc6 {[%clk 0:00:19]}  Qc3+ {[%clk 0:00:06]} 64. Kb7 {[%clk 0:00:19]}  Kg7 {[%clk 0:00:04]} 65. Ne5 {[%clk 0:00:18]}  Kf6 {[%clk 0:00:03]} 66. Nc6 {[%clk 0:00:18]}  Ke6 {[%clk 0:00:02]} 67. Nd8+ {[%clk 0:00:18]}  Ke7 {[%clk 0:00:02]} 68. Nc6+ {[%clk 0:00:18]}  Ke8 {[%clk 0:00:02]} 69. f4 {[%clk 0:00:18]}  Qc4 {[%clk 0:00:01]} 70. Re5+ {[%clk 0:00:16]} 1-0


[Site "https://www.chess.com"]